fUSD/lending_fUSD_20241224
["ID","MTS","AMOUNT","RATE_DAILY","PERIOD"]
[346520163,1735018276484,-520.01,0.00015616,2]
[346520164,1735018276494,-500.0,0.00015616,2]
[346520165,1735018276503,-506.66,0.00015616,2]
[346520166,1735018276513,-500.0,0.00015616,2]
[346520167,1735018276522,-500.0,0.00015616,2]
[346520168,1735018276531,-662.17,0.00015616,2]
[346520169,1735018276541,-500.0,0.00015616,2]
[346520170,1735018276551,-500.0,0.00015616,2]
[346520171,1735018276561,-696.48,0.00015616,2]
[346520172,1735018276571,-500.0,0.00015616,2]
[346520173,1735018276581,-500.0,0.00015616,2]
[346520174,1735018276591,-500.0,0.00015616,2]
[346520175,1735018276600,-518.6,0.00015616,2]
[346520176,1735018276611,-500.0,0.00015616,2]
[346520177,1735018276621,-500.0,0.00015616,2]
[346520178,1735018276630,-1152.77,0.00015616,2]
[346520179,1735018276640,-500.0,0.00015616,2]
[346520180,1735018276650,-500.0,0.00015616,2]
[346520181,1735018276660,-500.0,0.00015616,2]
[346520182,1735018276669,-586.32,0.00015616,2]
[346520183,1735018276679,-725.31,0.00015616,2]
[346520184,1735018276689,-500.0,0.00015616,2]
[346520185,1735018276698,-500.0,0.00015616,2]
[346520186,1735018276707,-846.78,0.00015616,2]
[346520187,1735018276717,-500.0,0.00015616,2]
[346520188,1735018276728,-500.0,0.00015616,2]
[346520189,1735018276737,-547.95,0.00015616,2]
[346520190,1735018276747,-713.44,0.00015616,2]
[346520191,1735018276756,-796.84,0.00015616,2]
[346520192,1735018276766,-523.75,0.00015616,2]
[346520193,1735018276775,-500.0,0.00015616,2]
[346520194,1735018276784,-500.0,0.00015616,2]
[346520195,1735018276793,-500.0,0.00015616,2]
[346520196,1735018276803,-500.0,0.00015616,2]
[346520197,1735018276812,-500.0,0.00015616,2]
[346520198,1735018276822,-500.0,0.00015616,2]
[346520199,1735018276832,-500.0,0.00015616,2]
[346520200,1735018276841,-5016.22,0.00015616,2]
[346520201,1735018276851,-1638.06,0.00015616,2]
[346520202,1735018276861,-500.0,0.00015616,2]
[346520203,1735018276871,-551.44,0.00015616,2]
[346520204,1735018276881,-1164.78,0.00015616,2]
[346520205,1735018276891,-500.0,0.00015616,2]
[346520206,1735018276901,-500.0,0.00015616,2]
[346520207,1735018276911,-782.49,0.00015616,2]
[346520208,1735018276921,-1583.85,0.00015616,2]
[346520209,1735018276930,-500.0,0.00015616,2]
[346520210,1735018276940,-901.71,0.00015616,2]
[346520211,1735018276949,-500.0,0.00015616,2]
[346520212,1735018276959,-1977.81,0.00015616,2]
[346520213,1735018276968,-500.0,0.00015616,2]
[346520214,1735018276978,-509.19,0.00015616,2]
[346520215,1735018276987,-500.0,0.00015616,2]
[346520216,1735018276996,-500.0,0.00015616,2]
[346520217,1735018277006,-500.0,0.00015616,2]
[346520218,1735018277015,-500.0,0.00015616,2]
[346520219,1735018277025,-500.0,0.00015616,2]
[346520220,1735018277035,-792.79,0.00015616,2]
[346520221,1735018277044,-849.68,0.00015616,2]
[346520222,1735018277054,-2088.9,0.00015616,2]
[346520223,1735018277063,-500.0,0.00015616,2]
[346520224,1735018277073,-2055.88,0.00015616,2]
[346520225,1735018277082,-500.0,0.00015616,2]
[346520226,1735018277092,-7677.04,0.00015616,2]
[346520227,1735018277101,-543.48,0.00015616,2]
[346520228,1735018277111,-854.97,0.00015616,2]
[346520229,1735018277120,-1395.53,0.00015616,2]
[346520230,1735018277130,-500.0,0.00015616,2]
[346520231,1735018277139,-318.27,0.00015616,2]
[346520232,1735018277150,-500.0,0.00015616,2]
[346520233,1735018277159,-500.0,0.00015616,2]
[346520234,1735018277169,-3679.71,0.00015616,2]
[346520235,1735018277178,-500.0,0.00015616,2]
[346520236,1735018277188,-1080.57,0.00015616,2]
[346520237,1735018277198,-500.0,0.00015616,2]
[346520238,1735018277207,-1694.03,0.00015616,2]
[346520239,1735018277217,-500.0,0.00015616,2]
[346520240,1735018277226,-1385.02,0.00015616,2]
[346520241,1735018277236,-505.35,0.00015616,2]
[346520242,1735018277246,-500.0,0.00015616,2]
[346520243,1735018277255,-1117.85,0.00015616,2]
[346520244,1735018277265,-705.9,0.00015616,2]
[346520245,1735018277274,-1539.8,0.00015616,2]
[346520246,1735018277283,-500.0,0.00015616,2]
[346520247,1735018277294,-2249.94,0.00015616,2]
[346520248,1735018277303,-555.35,0.00015616,2]
[346520249,1735018277313,-500.0,0.00015616,2]
[346520250,1735018277323,-500.0,0.00015616,2]
[346520251,1735018277333,-3833.98,0.00015616,2]
[346520252,1735018277342,-500.0,0.00015616,2]
[346520253,1735018277352,-937.66,0.00015616,2]
[346520254,1735018277361,-500.0,0.00015616,2]
[346520255,1735018277370,-2551.89,0.00015616,2]
[346520256,1735018277379,-586.98,0.00015616,2]
[346520257,1735018277388,-500.0,0.00015616,2]
[346520258,1735018277397,-1335.36,0.00015616,2]
[346520259,1735018277406,-3168.41,0.00015616,2]
[346520260,1735018277415,-1369.41,0.00015616,2]
[346520261,1735018277424,-500.0,0.00015616,2]
[346520262,1735018277433,-575.13,0.00015616,2]
[346520263,1735018277443,-845.43,0.00015616,2]
[346520264,1735018277452,-500.0,0.00015616,2]
[346520265,1735018277462,-887.19,0.00015616,2]
[346520266,1735018277471,-500.0,0.00015616,2]
[346520267,1735018277480,-547.48,0.00015616,2]
[346520268,1735018277490,-716.51,0.00015616,2]
[346520269,1735018277499,-561.45,0.00015616,2]
[346520270,1735018277509,-500.0,0.00015616,2]
[346520271,1735018277518,-500.0,0.00015616,2]
[346520272,1735018277528,-558.02,0.00015616,2]
[346520273,1735018277538,-500.0,0.00015616,2]
[346520274,1735018277548,-500.0,0.00015616,2]
[346520275,1735018277557,-1000.0,0.00015616,2]
[346520276,1735018277566,-500.0,0.00015616,2]
[346520277,1735018277575,-500.0,0.00015616,2]
[346520278,1735018277585,-973.2,0.00015616,2]
[346520279,1735018277595,-3656.76,0.00015616,2]
[346520280,1735018277604,-500.0,0.00015616,2]
[346520281,1735018277614,-997.53,0.00015616,2]
[346520282,1735018277623,-855.77,0.00015616,2]
[346520283,1735018277633,-693.49,0.00015616,2]
[346520284,1735018277642,-500.0,0.00015616,2]
[346520285,1735018277651,-637.35,0.00015616,2]
[346520286,1735018277660,-1739.36,0.00015616,2]
[346520287,1735018277669,-500.0,0.00015616,2]
[346520288,1735018277678,-500.0,0.00015616,2]
[346520289,1735018277687,-705.36,0.00015616,2]
[346520290,1735018277696,-500.0,0.00015616,2]
[346520291,1735018277705,-500.0,0.00015616,2]
[346520292,1735018277715,-1543.65,0.00015616,2]
[346520293,1735018277724,-500.0,0.00015616,2]
[346520294,1735018277734,-820.97,0.00015616,2]
[346520295,1735018277743,-1819.38,0.00015616,2]
[346520296,1735018277753,-4120.74,0.00015616,2]
[346520297,1735018277763,-989.44,0.00015616,2]
[346520298,1735018277772,-910.57,0.00015616,2]
[346520299,1735018277782,-2961.05,0.00015616,2]
[346520300,1735018277791,-500.0,0.00015616,2]
[346520301,1735018277801,-503.58,0.00015616,2]
[346520302,1735018277811,-903.8,0.00015616,2]
[346520303,1735018277820,-596.96,0.00015616,2]
[346520304,1735018277830,-807.94,0.00015616,2]
[346520305,1735018277839,-1456.76,0.00015616,2]
[346520306,1735018277849,-2643.91,0.00015616,2]
[346520307,1735018277859,-1308.53,0.00015616,2]
[346520308,1735018277868,-794.16,0.00015616,2]
[346520309,1735018277877,-1213.29,0.00015616,2]
[346520310,1735018277887,-1676.79,0.00015616,2]
[346520311,1735018277897,-500.0,0.00015616,2]
[346520312,1735018277907,-500.0,0.00015616,2]
[346520313,1735018277916,-5281.26,0.00015616,2]
[346520314,1735018277925,-1433.69,0.00015616,2]
[346520315,1735018277934,-677.19,0.00015616,2]
[346520316,1735018277943,-500.0,0.00015616,2]
[346520317,1735018277952,-1372.29,0.00015616,2]
[346520318,1735018277961,-1023.69,0.00015616,2]
[346520319,1735018277970,-500.0,0.00015616,2]
[346520320,1735018277980,-680.17,0.00015616,2]
[346520321,1735018277989,-552.15,0.00015616,2]
[346520322,1735018277999,-705.72,0.00015616,2]
[346520323,1735018278008,-500.0,0.00015616,2]
[346520324,1735018278018,-674.8,0.00015616,2]
[346520325,1735018278028,-4867.25,0.00015616,2]
[346520326,1735018278037,-3213.6,0.00015616,2]
[346520327,1735018278046,-854.26,0.00015616,2]
[346520328,1735018278056,-500.0,0.00015616,2]
[346520329,1735018278065,-1660.69,0.00015616,2]
[346520330,1735018278074,-500.0,0.00015616,2]
[346520331,1735018278084,-548.87,0.00015616,2]
[346520332,1735018278093,-826.14,0.00015616,2]
[346520333,1735018278102,-500.0,0.00015616,2]
[346520334,1735018278112,-14771.78,0.00015616,2]
[346520335,1735018278121,-619.38,0.00015616,2]
[346520336,1735018278131,-3293.16,0.00015616,2]
[346520337,1735018278141,-250.75777252,0.00015616,2]
[346520338,1735018278207,-500.0,0.00015616,2]
[346520339,1735018278216,-500.0,0.00015616,2]
[346520340,1735018278226,-500.0,0.00015616,2]
[346520341,1735018278236,-527.97,0.00015616,2]
[346520342,1735018278245,-500.0,0.00015616,2]
[346520343,1735018278255,-500.0,0.00015616,2]
[346520344,1735018278264,-500.0,0.00015616,2]
[346520345,1735018278273,-1071.77,0.00015616,2]
[346520346,1735018278282,-500.0,0.00015616,2]
[346520347,1735018278292,-500.0,0.00015616,2]
[346520348,1735018278301,-587.0,0.00015634,2]
[346520349,1735018278311,-150.0,0.00015636,2]
[346520350,1735018278320,-150.0,0.00015642,2]
[346520351,1735018278330,-150.0,0.0001566,2]
[346520352,1735018278339,-150.0,0.00015672,2]
[346520353,1735018278348,-150.0,0.00015677,2]
[346520354,1735018278358,-150.0,0.00015684,2]
[346520355,1735018278368,-150.0,0.00015708,2]
[346520356,1735018278377,-150.0,0.00015712,2]
[346520357,1735018278386,-553.36804499,0.00015713,2]
[346520358,1735018278395,-1627.96297763,0.00015729,2]
[346520359,1735018278404,-150.0,0.00015732,2]
[346520360,1735018278413,-150.0,0.00015732,2]
[346520361,1735018278423,-150.0,0.00015732,2]
[346520362,1735018278432,-150.0,0.00015746,2]
[346520363,1735018278441,-2075.88434638,0.00015751,2]
[346520364,1735018278451,-150.0,0.00015755,2]
[346520365,1735018278460,-150.0,0.00015779,2]
[346520366,1735018278470,-150.0,0.00015781,2]
[346520367,1735018278480,-150.0,0.00015791,2]
[346520368,1735018278489,-424.32,0.00015802,2]
[346520369,1735018278498,-150.0,0.00015803,2]
[346520370,1735018278507,-150.0,0.00015816,2]
[346520371,1735018278517,-150.0,0.00015827,2]
[346520372,1735018278526,-150.0,0.00015851,2]
[346520373,1735018278535,-150.0,0.00015851,2]
[346520374,1735018278545,-150.0,0.00015851,2]
[346520375,1735018278554,-150.0,0.00015851,2]
[346520376,1735018278563,-150.0,0.00015851,2]
[346520377,1735018278572,-150.0,0.00015875,2]
[346520378,1735018278582,-150.0,0.00015885,2]
[346520379,1735018278591,-500.0,0.00015889,2]
[346520380,1735018278600,-500.0,0.00015889,2]
[346520381,1735018278610,-500.0,0.00015889,2]
[346520382,1735018278619,-500.0,0.00015889,2]
[346520383,1735018278628,-500.0,0.00015889,2]
[346520384,1735018278638,-500.0,0.00015889,2]
[346520385,1735018278647,-500.0,0.00015889,2]
[346520386,1735018278656,-500.0,0.00015889,2]
[346520387,1735018278665,-270.74024911,0.00015889,2]
[346520388,1735018278674,-500.0,0.00015889,2]
[346520389,1735018278685,-535.15,0.00015889,2]
[346520390,1735018278695,-500.0,0.00015889,2]
[346520391,1735018278707,-500.0,0.00015889,2]
[346520392,1735018278716,-299.19149676,0.00015889,2]
[346520393,1735018278725,-609.1,0.00015889,2]
[346520394,1735018278734,-500.0,0.00015889,2]
[346520395,1735018278744,-500.0,0.00015889,2]
[346520396,1735018278757,-500.0,0.00015889,2]
[346520397,1735018278766,-500.0,0.00015889,2]
[346520398,1735018278775,-500.0,0.00015889,2]
[346520399,1735018278784,-500.0,0.00015889,2]
[346520400,1735018278793,-500.0,0.00015889,2]
[346520401,1735018278803,-500.0,0.00015889,2]
[346520402,1735018278812,-500.0,0.00015889,2]
[346520403,1735018278821,-500.0,0.00015889,2]
[346520404,1735018278830,-500.0,0.00015889,2]
[346520405,1735018278840,-500.0,0.00015889,2]
[346520406,1735018278849,-500.0,0.00015889,2]
[346520407,1735018278858,-500.0,0.00015889,2]
[346520408,1735018278867,-500.0,0.00015889,2]
[346520409,1735018278877,-500.0,0.00015889,2]
[346520410,1735018278886,-500.0,0.00015889,2]
[346520411,1735018278895,-500.0,0.00015889,2]
[346520412,1735018278906,-500.0,0.00015889,2]
[346520413,1735018278915,-500.0,0.00015889,2]
[346520414,1735018278925,-500.0,0.00015889,2]
[346520415,1735018278934,-500.0,0.00015889,2]
[346520416,1735018278943,-500.0,0.00015889,2]
[346520417,1735018278954,-500.0,0.00015889,2]
[346520418,1735018278963,-500.0,0.00015889,2]
[346520419,1735018278973,-500.0,0.00015889,2]
[346520420,1735018278982,-500.0,0.00015889,2]
[346520421,1735018278991,-1508.76,0.00015889,2]
[346520422,1735018279000,-500.0,0.00015889,2]
[346520423,1735018279009,-500.0,0.00015889,2]
[346520424,1735018279017,-500.0,0.00015889,2]
[346520425,1735018279026,-500.0,0.00015889,2]
[346520426,1735018279035,-1465.72,0.00015889,2]
[346520427,1735018279044,-500.0,0.00015889,2]
[346520428,1735018279053,-500.0,0.00015889,2]
[346520429,1735018279063,-500.0,0.00015889,2]
[346520430,1735018279072,-500.0,0.00015889,2]
[346520431,1735018279081,-1465.24,0.00015889,2]
[346520432,1735018279090,-500.0,0.00015889,2]
[346520433,1735018279100,-500.0,0.00015889,2]
[346520434,1735018279109,-2919.0,0.00015889,2]
[346520435,1735018279118,-500.0,0.00015889,2]
[346520436,1735018279129,-632.4922764,0.00015889,2]
[346520437,1735018279138,-2253.9,0.00015889,2]
[346520438,1735018279149,-3237.5,0.00015889,2]
[346520439,1735018279158,-554.59,0.00015889,2]
[346520440,1735018279167,-500.0,0.00015889,2]
[346520441,1735018279177,-794.47,0.00015889,2]
[346520442,1735018279186,-500.0,0.00015889,2]
[346520443,1735018279195,-935.63,0.00015889,2]
[346520444,1735018279205,-505.40944091,0.00015889,2]
[346520445,1735018279215,-500.0,0.00015889,2]
[346520446,1735018279223,-2816.14,0.00015889,2]
[346520447,1735018279233,-472.19229199,0.00015889,2]
[346520448,1735018279242,-500.0,0.00015889,2]
[346520449,1735018279251,-500.0,0.00015889,2]
[346520450,1735018279260,-955.57,0.00015889,2]
[346520451,1735018279270,-500.0,0.00015889,2]
[346520452,1735018279279,-500.0,0.00015889,2]
[346520453,1735018279289,-500.0,0.00015889,2]
[346520454,1735018279298,-908.11,0.00015889,2]
[346520455,1735018279307,-500.0,0.00015889,2]
[346520456,1735018279316,-500.0,0.00015889,2]
[346520457,1735018279325,-500.0,0.00015889,2]
[346520458,1735018279334,-1028.08,0.00015889,2]
[346520459,1735018279343,-568.18,0.00015889,2]
[346520460,1735018279353,-500.0,0.00015889,2]
[346520461,1735018279362,-683.69,0.00015889,2]
[346520462,1735018279371,-500.0,0.00015889,2]
[346520463,1735018279380,-500.0,0.00015889,2]
[346520464,1735018279389,-1115.82,0.00015889,2]
[346520465,1735018279399,-722.75,0.00015889,2]
[346520466,1735018279408,-588.17953798,0.00015889,2]
[346520467,1735018279417,-1499.78,0.00015889,2]
[346520468,1735018279426,-500.0,0.00015889,2]
[346520469,1735018279435,-1265.66,0.00015889,2]
[346520470,1735018279445,-500.0,0.00015889,2]
[346520471,1735018279454,-500.0,0.00015889,2]
[346520472,1735018279463,-7745.3,0.00015889,2]
[346520473,1735018279473,-500.0,0.00015889,2]
[346520474,1735018279482,-500.0,0.00015889,2]
[346520475,1735018279492,-954.82,0.00015889,2]
[346520476,1735018279501,-500.0,0.00015889,2]
[346520477,1735018279510,-500.0,0.00015889,2]
[346520478,1735018279519,-500.0,0.00015889,2]
[346520479,1735018279528,-335.1216087,0.0001589,2]
[346520480,1735018279537,-500.0,0.0001589,2]
[346520481,1735018279547,-500.0,0.0001589,2]
[346520482,1735018279556,-477.64885757,0.0001589,2]
[346520483,1735018279565,-518.75722284,0.0001589,2]
[346520484,1735018279574,-500.0,0.0001589,2]
[346520485,1735018279583,-500.0,0.0001589,2]
[346520486,1735018279592,-500.0,0.0001589,2]
[346520487,1735018279601,-546.3,0.0001589,2]
[346520488,1735018279610,-500.0,0.0001589,2]
[346520489,1735018279619,-658.36,0.0001589,2]
[346520490,1735018279627,-500.0,0.0001589,2]
[346520491,1735018279637,-500.0,0.0001589,2]
[346520492,1735018279646,-500.0,0.0001589,2]
[346520493,1735018279655,-680.9,0.0001589,2]
[346520494,1735018279665,-500.0,0.0001589,2]
[346520495,1735018279675,-500.0,0.0001589,2]
[346520496,1735018279684,-500.0,0.0001589,2]
[346520497,1735018279692,-501.62,0.0001589,2]
[346520498,1735018279702,-586.12,0.0001589,2]
[346520499,1735018279711,-500.0,0.0001589,2]
[346520500,1735018279720,-500.0,0.0001589,2]
[346520501,1735018279729,-500.0,0.0001589,2]
[346520502,1735018279738,-500.0,0.0001589,2]
[346520503,1735018279747,-500.0,0.0001589,2]
[346520504,1735018279757,-500.0,0.0001589,2]
[346520505,1735018279766,-500.0,0.0001589,2]
[346520506,1735018279775,-500.71,0.0001589,2]
[346520507,1735018279784,-582.46,0.0001589,2]
[346520508,1735018279793,-500.0,0.0001589,2]
[346520509,1735018279802,-500.0,0.0001589,2]
[346520510,1735018279811,-500.0,0.0001589,2]
[346520511,1735018279820,-500.0,0.0001589,2]
[346520512,1735018279829,-500.0,0.0001589,2]
[346520513,1735018279838,-584.84,0.0001589,2]
[346520514,1735018279847,-500.0,0.0001589,2]
[346520515,1735018279856,-667.98,0.0001589,2]
[346520516,1735018279864,-500.0,0.0001589,2]
[346520517,1735018279874,-500.0,0.0001589,2]
[346520518,1735018279883,-500.0,0.0001589,2]
[346520519,1735018279892,-500.0,0.0001589,2]
[346520520,1735018279902,-500.0,0.0001589,2]
[346520521,1735018279911,-500.0,0.0001589,2]
[346520522,1735018279920,-500.0,0.0001589,2]
[346520523,1735018279930,-711.57,0.0001589,2]
[346520524,1735018279940,-500.0,0.0001589,2]
[346520525,1735018279950,-500.0,0.0001589,2]
[346520526,1735018279959,-500.0,0.0001589,2]
[346520527,1735018279968,-897.7,0.0001589,2]
[346520528,1735018279977,-500.0,0.0001589,2]
[346520529,1735018279986,-500.0,0.0001589,2]
[346520530,1735018279995,-500.0,0.0001589,2]
[346520531,1735018280005,-500.0,0.0001589,2]
[346520532,1735018280013,-500.0,0.0001589,2]
[346520533,1735018280022,-560.63,0.0001589,2]
[346520534,1735018280031,-668.01,0.0001589,2]
[346520535,1735018280040,-500.0,0.0001589,2]
[346520536,1735018280049,-502.71832635,0.0001589,2]
[346520537,1735018280058,-557.47,0.0001589,2]
[346520538,1735018280066,-500.0,0.0001589,2]
[346520539,1735018280076,-500.0,0.0001589,2]
[346520540,1735018280085,-383.597552,0.0001589,2]
[346520541,1735018280094,-500.0,0.0001589,2]
[346520542,1735018280103,-555.168296,0.0001589,2]
[346520543,1735018280111,-500.0,0.0001589,2]
[346520544,1735018280120,-531.69184559,0.0001589,2]
[346520545,1735018280130,-500.0,0.0001589,2]
[346520546,1735018280139,-500.0,0.0001589,2]
[346520547,1735018280151,-946.68,0.0001589,2]
[346520548,1735018280159,-500.0,0.0001589,2]
[346520549,1735018280168,-500.0,0.0001589,2]
[346520550,1735018280177,-500.0,0.0001589,2]
[346520551,1735018280186,-500.0,0.0001589,2]
[346520552,1735018280194,-500.0,0.0001589,2]
[346520553,1735018280204,-500.0,0.0001589,2]
[346520554,1735018280213,-500.0,0.0001589,2]
[346520555,1735018280222,-592.9,0.0001589,2]
[346520556,1735018280231,-547.28,0.0001589,2]
[346520557,1735018280240,-598.2,0.0001589,2]
[346520558,1735018280249,-520.01,0.0001589,2]
[346520559,1735018280258,-500.0,0.0001589,2]
[346520560,1735018280267,-506.66,0.0001589,2]
[346520561,1735018280276,-500.0,0.0001589,2]
[346520562,1735018280286,-500.0,0.0001589,2]
[346520563,1735018280295,-662.17,0.0001589,2]
[346520564,1735018280304,-500.0,0.0001589,2]
[346520565,1735018280313,-500.0,0.0001589,2]
[346520566,1735018280322,-696.48,0.0001589,2]
[346520567,1735018280331,-500.0,0.0001589,2]
[346520568,1735018280341,-500.0,0.0001589,2]
[346520569,1735018280350,-500.0,0.0001589,2]
[346520570,1735018280359,-518.6,0.0001589,2]
[346520571,1735018280368,-500.0,0.0001589,2]
[346520572,1735018280377,-500.0,0.0001589,2]
[346520573,1735018280386,-1152.77,0.0001589,2]
[346520574,1735018280395,-500.0,0.0001589,2]
[346520575,1735018280403,-500.0,0.0001589,2]
[346520576,1735018280412,-500.0,0.0001589,2]
[346520577,1735018280421,-586.32,0.0001589,2]
[346520578,1735018280430,-725.31,0.0001589,2]
[346520579,1735018280439,-500.0,0.0001589,2]
[346520580,1735018280449,-500.0,0.0001589,2]
[346520581,1735018280458,-846.78,0.0001589,2]
[346520582,1735018280467,-500.0,0.0001589,2]
[346520583,1735018280476,-500.0,0.0001589,2]
[346520584,1735018280484,-547.95,0.0001589,2]
[346520585,1735018280493,-713.44,0.0001589,2]
[346520586,1735018280502,-796.84,0.0001589,2]
[346520587,1735018280511,-523.75,0.0001589,2]
[346520588,1735018280520,-500.0,0.0001589,2]
[346520589,1735018280529,-500.0,0.0001589,2]
[346520590,1735018280538,-500.0,0.0001589,2]
[346520591,1735018280547,-500.0,0.0001589,2]
[346520592,1735018280556,-500.0,0.0001589,2]
[346520593,1735018280565,-500.0,0.0001589,2]
[346520594,1735018280574,-500.0,0.0001589,2]
[346520595,1735018280583,-5016.22,0.0001589,2]
[346520596,1735018280592,-1638.06,0.0001589,2]
[346520597,1735018280601,-500.0,0.0001589,2]
[346520598,1735018280610,-551.44,0.0001589,2]
[346520599,1735018280619,-1164.78,0.0001589,2]
[346520600,1735018280628,-500.0,0.0001589,2]
[346520601,1735018280637,-500.0,0.0001589,2]
[346520602,1735018280647,-782.49,0.0001589,2]
[346520603,1735018280656,-1583.85,0.0001589,2]
[346520604,1735018280665,-901.71,0.0001589,2]
[346520605,1735018280674,-500.0,0.0001589,2]
[346520606,1735018280684,-1977.81,0.0001589,2]
[346520607,1735018280693,-500.0,0.0001589,2]
[346520608,1735018280702,-509.19,0.0001589,2]
[346520609,1735018280711,-500.0,0.0001589,2]
[346520610,1735018280720,-500.0,0.0001589,2]
[346520611,1735018280730,-500.0,0.0001589,2]
[346520612,1735018280739,-500.0,0.0001589,2]
[346520613,1735018280749,-500.0,0.0001589,2]
[346520614,1735018280758,-792.79,0.0001589,2]
[346520615,1735018280767,-849.68,0.0001589,2]
[346520616,1735018280777,-2088.9,0.0001589,2]
[346520617,1735018280786,-500.0,0.0001589,2]
[346520618,1735018280795,-2055.88,0.0001589,2]
[346520619,1735018280804,-500.0,0.0001589,2]
[346520620,1735018280812,-7677.04,0.0001589,2]
[346520621,1735018280822,-543.48,0.0001589,2]
[346520622,1735018280831,-854.97,0.0001589,2]
[346520623,1735018280840,-1395.53,0.0001589,2]
[346520624,1735018280849,-500.0,0.0001589,2]
[346520625,1735018280858,-500.0,0.0001589,2]
[346520626,1735018280867,-3679.71,0.0001589,2]
[346520627,1735018280876,-182.9,0.0001589,2]
[346520628,1735018280885,-500.0,0.0001589,2]
[346520629,1735018280894,-1080.57,0.0001589,2]
[346520630,1735018280903,-500.0,0.0001589,2]
[346520631,1735018280912,-1694.03,0.0001589,2]
[346520632,1735018280921,-500.0,0.0001589,2]
[346520633,1735018280931,-1385.02,0.0001589,2]
[346520634,1735018280940,-505.35,0.0001589,2]
[346520635,1735018280949,-500.0,0.0001589,2]
[346520636,1735018280958,-1117.85,0.0001589,2]
[346520637,1735018280967,-705.9,0.0001589,2]
[346520638,1735018280975,-1539.8,0.0001589,2]
[346520639,1735018280984,-500.0,0.0001589,2]
[346520640,1735018280993,-2249.94,0.0001589,2]
[346520641,1735018281003,-500.0,0.0001589,2]
[346520642,1735018281012,-500.0,0.0001589,2]
[346520643,1735018281021,-3833.98,0.0001589,2]
[346520644,1735018281032,-500.0,0.0001589,2]
[346520645,1735018281041,-937.66,0.0001589,2]
[346520646,1735018281050,-500.0,0.0001589,2]
[346520647,1735018281059,-2551.89,0.0001589,2]
[346520648,1735018281069,-586.98,0.0001589,2]
[346520649,1735018281079,-500.0,0.0001589,2]
[346520650,1735018281088,-1335.36,0.0001589,2]
[346520651,1735018281097,-3168.41,0.0001589,2]
[346520652,1735018281107,-500.0,0.0001589,2]
[346520653,1735018281116,-1369.41,0.0001589,2]
[346520654,1735018281125,-575.13,0.0001589,2]
[346520655,1735018281134,-845.43,0.0001589,2]
[346520656,1735018281145,-500.0,0.0001589,2]
[346520657,1735018281155,-887.19,0.0001589,2]
[346520658,1735018281164,-500.0,0.0001589,2]
[346520659,1735018281173,-547.48,0.0001589,2]
[346520660,1735018281182,-716.51,0.0001589,2]
[346520661,1735018281191,-561.45,0.0001589,2]
[346520662,1735018281200,-500.0,0.0001589,2]